{"text_format":"1","workbook":"xlsx","n_sheets":9,"sheets":["ID-EPH-Cat1-Child Recreational","ID-EPH-Cat1-Adult Recreational","ID-EPH-Cat1-Adult Worker","ID-EPH-Cat2-Residential","ID-EPH-Cat2-Nonresidential","ID-EPH-Cat2-Child Recreational","ID-EPH-Cat2-Adult Recreational","ID-EPH-Cat2-Adult Worker","Sheet1"],"not_rendered":{"charts":0,"images":28,"macros":1,"external_links":0,"defined_names":8,"comments":0,"pivot_tables":0},"unopened":[],"bounds":{"document_bytes":16777216,"sheet_cells":100000,"rows_first":2000,"rows_last":500,"rows_between":2000,"halvings":0,"cell_chars":16384,"cell_head_chars":4096},"cells_cut":0,"cells_raw":0,"read":"whole","date_system":"1900"}

{"sheet":"ID-EPH-Cat1-Child Recreational","index":0,"n_rows":91,"n_cols":78,"rows_kept":91,"cut":false,"hidden":false,"merged":[[6,9,6,10],[0,0,0,7],[1,0,1,1],[1,2,1,5],[2,0,3,1],[2,2,3,4],[2,6,2,7],[3,6,3,7],[6,5,6,6],[10,1,10,2],[7,1,7,2],[8,1,8,2],[9,1,9,2],[6,1,6,2]]}
["NJDEP 2021 EPH Category 1 Ingestion/Dermal Child Recreational Calculator"]
["Site Name:",null,null,null,null,null,"Date:",null,null,null,"Calculated or locked cell"]
["Sample ID:",null,null,null,null,null,null,null,null,null,"Required data entry"]
[null,null,null,null,null,"Evaluated by:",null,null,null,null,"Optional data entry/modification"]
[]
[]
["Parameter","Definition",null,"Units","Alternative Scenario"]
["EFdefault","Default Exposure Frequency",null,"days/year",350]
["EFsite-specific","Site-specific Exposure Frequency",null,"days/year",350,{"$f":"IF(OR(E9<0,E9>365),\"out of range\",IF(E9<>350,\"changed\",\"\"))","v":""}]
["IDdefault","Default non-carcinogenic Health-Based Soil Criterion",null,"mg/kg",5300]
["IDnc","Site-specific Non-carcinogenic Health-Based Soil Criterion (ingestion/dermal)",null,"mg/kg",{"$f":"Round_to_Even((E8/E9)*E10)","v":5300}]
[]
[]
[]
[]
[]
[]
[]
[]
[]
[]
[]
[]
[]
[]
[]
[]
[]
[]
[]
[]
[]
[]
[]
[]
[]
[]
[]
[]
[]
[]
[]
[]
[]
[]
[]
[]
[]
[]
[]
[]
[]
[]
[]
[]
[]
[]
[]
[]
[]
[]
[]
[]
[]
[]
[]
[]
[]
[]
[]
[]
[]
[]
[]
[]
[]
[]
[]
[]
[]
[]
[null,null,null,null,null,null,null,null,null,null,null,null,null,null,null,null,null,null,null,null,null,null,null,null,null,null,null,null,null,null,null,null,null,null,null,null,null,null,null,null,null,null,null,null,null,null,null,null,null,null,null,null,null,null,null,null,null,null,null,null,null,null,null,null,null,null,null,null,null,null,null,null,null,null,null,null,null,"309-00-2"]
[]
[]
[]
[]
[]
[]
[]
[]
[null,null,null,null,null,null,null,null,null,null,null,null,null,null,null,null,null,null,null,null,null,null,null,null,null,null,null,null,null,null,null,null,null,null,null,null,null,null,null,null,null,null,null,null,null,null,null,null,null,null,null,null,null,null,null,null,null,null,null,null,null,null,null,null,null,null,null,null,null,null,null,null,null,null,null,null,null,"106-47-8"]

{"sheet":"ID-EPH-Cat1-Adult Recreational","index":1,"n_rows":108,"n_cols":79,"rows_kept":108,"cut":false,"hidden":false,"merged":[[0,0,0,8],[1,0,1,1],[1,2,1,6],[2,0,3,1],[2,2,3,5],[2,7,2,8],[3,7,3,8],[6,1,6,2],[7,1,7,2],[8,1,8,2],[9,1,9,2],[10,1,10,2],[11,1,11,2],[12,1,12,2],[13,1,13,2],[14,1,14,2],[21,1,21,2],[22,1,22,2],[23,1,23,2],[24,1,24,2],[15,1,15,2],[16,1,16,2],[17,1,17,2],[18,1,18,2],[19,1,19,2],[20,1,20,2]]}
["NJDEP 2021 EPH Category 1 Ingestion/Dermal Adult Recreational Calculator"]
["Site Name:",null,null,null,null,null,null,"Date:",null,null,null,"Calculated or locked cell"]
["Sample ID",null,null,null,null,null,null,null,null,null,null,"Required data entry"]
[null,null,null,null,null,null,"Evaluated by:",null,null,null,null,"Optional data entry/modification"]
[]
[]
["Parameter","Definition",null,"Units","Alternative Scenario"]
["EFdefault","Default Exposure Frequency",null,"days/year",350]
["EFsite-specific","Site-specific Exposure Frequency",null,"days/year",350,{"$f":"IF(OR(E9<0,E9>365),\"out of range\",IF(E9<>350,\"changed\",\"\"))","v":""}]
["IDdefault","Default non-carcinogenic Health-Based Soil Criterion",null,"mg/kg",48000]
["IDnc","Site-specific Non-carcinogenic Health-Based Soil Criterion (ingestion/dermal)",null,"mg/kg",{"$f":"Round_to_Even((E8/E9)*E10)","v":48000}]
[]
[]
[]
[]
[]
[]
[]
[]
[]
[]
[]
[]
[]
[]
[]
[]
[]
[]
[]
[]
[]
[]
[]
[]
[]
[]
[]
[]
[]
[]
[]
[]
[]
[]
[]
[]
[]
[]
[]
[]
[]
[]
[]
[]
[]
[]
[]
[]
[]
[]
[]
[]
[]
[]
[]
[]
[]
[]
[]
[]
[]
[]
[]
[]
[]
[]
[]
[]
[]
[]
[]
[]
[]
[]
[]
[]
[]
[]
[]
[]
[]
[]
[]
[]
[]
[]
[]
[null,null,null,null,null,null,null,null,null,null,null,null,null,null,null,null,null,null,null,null,null,null,null,null,null,null,null,null,null,null,null,null,null,null,null,null,null,null,null,null,null,null,null,null,null,null,null,null,null,null,null,null,null,null,null,null,null,null,null,null,null,null,null,null,null,null,null,null,null,null,null,null,null,null,null,null,null,null,"309-00-2"]
[]
[]
[]
[]
[]
[]
[]
[]
[null,null,null,null,null,null,null,null,null,null,null,null,null,null,null,null,null,null,null,null,null,null,null,null,null,null,null,null,null,null,null,null,null,null,null,null,null,null,null,null,null,null,null,null,null,null,null,null,null,null,null,null,null,null,null,null,null,null,null,null,null,null,null,null,null,null,null,null,null,null,null,null,null,null,null,null,null,null,"106-47-8"]

{"sheet":"ID-EPH-Cat1-Adult Worker","index":2,"n_rows":108,"n_cols":79,"rows_kept":108,"cut":false,"hidden":false,"merged":[[0,0,0,8],[1,0,1,1],[1,2,1,6],[2,0,3,1],[2,2,3,5],[2,7,2,8],[3,7,3,8],[6,1,6,2],[7,1,7,2],[8,1,8,2],[9,1,9,2],[10,1,10,2],[11,1,11,2],[12,1,12,2],[13,1,13,2],[14,1,14,2],[21,1,21,2],[22,1,22,2],[23,1,23,2],[24,1,24,2],[15,1,15,2],[16,1,16,2],[17,1,17,2],[18,1,18,2],[19,1,19,2],[20,1,20,2]]}
["NJDEP 2021 EPH Category 1 Ingestion/Dermal Adult Worker Calculator"]
["Site Name:",null,null,null,null,null,null,"Date:",null,null,null,"Calculated or locked cell"]
["Sample ID:",null,null,null,null,null,null,null,null,null,null,"Required data entry"]
[null,null,null,null,null,null,"Evaluated by:",null,null,null,null,"Optional data entry/modification"]
[]
[]
["Parameter","Definition",null,"Units","Alternative Scenario"]
["EFdefault","Default Exposure Frequency",null,"days/year",225]
["EFsite-specific","Site-specific Exposure Frequency",null,"days/year",225,{"$f":"IF(OR(E9<0,E9>365),\"out of range\",IF(E9<>225,\"changed\",\"\"))","v":""}]
["IDdefault","Default non-carcinogenic Health-Based Soil Criterion",null,"mg/kg",75000]
["IDnc","Site-specific Non-carcinogenic Health-Based Soil Criterion (ingestion/dermal)",null,"mg/kg",{"$f":"Round_to_Even((E8/E9)*E10)","v":75000}]
[]
[]
[]
[]
[]
[]
[]
[]
[]
[]
[]
[]
[]
[]
[]
[]
[]
[]
[]
[]
[]
[]
[]
[]
[]
[]
[]
[]
[]
[]
[]
[]
[]
[]
[]
[]
[]
[]
[]
[]
[]
[]
[]
[]
[]
[]
[]
[]
[]
[]
[]
[]
[]
[]
[]
[]
[]
[]
[]
[]
[]
[]
[]
[]
[]
[]
[]
[]
[]
[]
[]
[]
[]
[]
[]
[]
[]
[]
[]
[]
[]
[]
[]
[]
[]
[]
[]
[null,null,null,null,null,null,null,null,null,null,null,null,null,null,null,null,null,null,null,null,null,null,null,null,null,null,null,null,null,null,null,null,null,null,null,null,null,null,null,null,null,null,null,null,null,null,null,null,null,null,null,null,null,null,null,null,null,null,null,null,null,null,null,null,null,null,null,null,null,null,null,null,null,null,null,null,null,null,"309-00-2"]
[]
[]
[]
[]
[]
[]
[]
[]
[null,null,null,null,null,null,null,null,null,null,null,null,null,null,null,null,null,null,null,null,null,null,null,null,null,null,null,null,null,null,null,null,null,null,null,null,null,null,null,null,null,null,null,null,null,null,null,null,null,null,null,null,null,null,null,null,null,null,null,null,null,null,null,null,null,null,null,null,null,null,null,null,null,null,null,null,null,null,"106-47-8"]

{"sheet":"ID-EPH-Cat2-Residential","index":3,"n_rows":108,"n_cols":79,"rows_kept":108,"cut":false,"hidden":false,"merged":[[18,7,18,8],[26,1,26,2],[27,1,27,2],[28,1,28,2],[23,1,23,2],[24,1,24,2],[25,1,25,2],[18,1,18,2],[19,1,19,2],[20,1,20,2],[21,1,21,2],[22,1,22,2],[14,1,14,2],[15,1,15,2],[15,10,15,11],[16,1,16,2],[17,1,17,2],[0,0,0,8],[1,0,1,1],[1,2,1,6],[2,0,3,1],[2,2,3,5],[2,7,2,8],[3,7,3,8]]}
["NJDEP 2021 EPH Category 2 Ingestion/Dermal Residential Calculator"]
["Site Name:",null,null,null,null,null,null,"Date:",null,null,null,"Calculated or locked cell"]
["Sample ID:",null,null,null,null,null,null,null,null,null,null,"Required data entry"]
[null,null,null,null,null,null,"Evaluated by:",null,null,null,null,"Optional data entry/modification"]
[]
[]
[null,"AL 9-12\n(PHC Mixture)","AL 12-16\n(PHC Mixture)","AL 16-21\n(Mineral Oil)","AL 21-40\n(Mineral Oil)","AR 10-12\n(Naphthalene)","AR 12-16\n(Acenaphthalene)","AR 16-21\n(Fluorene)","AR 21-36\n(Fluoranthene)"]
["RfDo",0.1,0.1,2,2,4.1000000000000002E-2,0.06,0.04,0.04]
["RfDD",0.1,0.1,2,2,4.1000000000000002E-2,0.06,0.04,0.04]
["ABSd",0.1,0.1,0.1,0.1,0.13,0.13,0.13,0.13]
["Child ECFV",{"$f":"($E$16*$E$17*$E$19*$E$23)/($E$18*$E$19*10^-6*(((1/B8)*$E$24)+((1/B9)*$E$25*$E$26*B10)))","v":6321.3679555714634},6321.3679555714634,126427.35911142928,126427.35911142928,2450.7529398663455,3586.4677168775793,2390.978477918386,2390.978477918386]
["Concentration of fraction (mg/kg)","Enter concentration","Enter concentration","Enter concentration","Enter concentration","Enter concentration","Enter concentration","Enter concentration","Enter concentration"]
["f",{"$f":"IF(ISERROR(B12/$H$16),\"\",B12/$H$16)","v":""},{"$f":"IF(ISERROR(C12/$H$16),\"\",C12/$H$16)","v":""},"","","","","",""]
[]
["Parameter","Definition",null,"Units","Residential Scenario",null,null,"Total EPH:"]
["THQ","Target Hazard Quotient",null,"unitless",1,null,null,{"$f":"IF(ISERROR(B12+C12+D12+E12+F12+G12+H12+I12),\"\",B12+C12+D12+E12+F12+G12+H12+I12)","v":""},"mg/kg"]
["AT","Averaging Time",null,"days/year",365,null,null,"Allowable EPH in sample:"]
["EFc","Exposure Frequency - child",null,"days/year",350,null,null,{"$f":"C32","v":""},"mg/kg"]
["EDc","Exposure Duration - child",null,"years",6,null,null,{"$f":"IF(H16=\"\",\"\",IF(H16<=H18, \"PASS\",\"FAIL\"))","v":""}]
["RfDo","Oral Reference Dose",null,"mg/kg-day","see above"]
["RfDD","Dermal Reference Dose",null,"mg/kg-day","see above"]
["ABSd","Dermal Absorption Fraction",null,"unitless","see above"]
["BWc","Body Weight - child",null,"kg",15]
["IRc","Soil Ingestion Rate - child",null,"mg/day",200]
["SAc","Skin Surface Area - child",null,"cm2/day",2373]
["AFc","Soil Adherence Factor - child",null,"mg/cm2",0.2]
["ECFV","Equivalent carbon fraction value",null,"mg/kg-day","see above"]
["f","EC Weight fraction =  fraction concentration/total concentration",null,"unitless","see above"]
["IDnc","Residential Non-carcinogenic Health-Based Soil Criterion (ingestion/dermal)",null,"mg/kg",{"$f":"IF(ISERROR(1/(B13/B11+C13/C11+D13/D11+E13/E11+F13/F11+G13/G11+H13/H11+I13/I11)),\"\",Round_to_Even(1/(B13/B11+C13/C11+D13/D11+E13/E11+F13/F11+G13/G11+H13/H11+I13/I11)))","v":""}]
[]
["EPH Category 2 Ingestion/Dermal Residential Soil Remediation Standard:"]
[null,null,{"$f":"E29","v":""},"mg/kg"]
[]
[]
[]
[]
[]
[]
[]
[]
[]
[]
[]
[]
[]
[]
[]
[]
[]
[]
[]
[]
[]
[]
[]
[]
[]
[]
[]
[]
[]
[]
[]
[]
[]
[]
[]
[]
[]
[]
[]
[]
[]
[]
[]
[]
[]
[]
[]
[]
[]
[]
[]
[]
[]
[]
[]
[]
[]
[]
[]
[]
[]
[]
[]
[]
[]
[]
[]
[]
[]
[]
[]
[]
[]
[]
[]
[null,null,null,null,null,null,null,null,null,null,null,null,null,null,null,null,null,null,null,null,null,null,null,null,null,null,null,null,null,null,null,null,null,null,null,null,null,null,null,null,null,null,null,null,null,null,null,null,null,null,null,null,null,null,null,null,null,null,null,null,null,null,null,null,null,null,null,null,null,null,null,null,null,null,null,null,null,null,"72-54-8"]

{"sheet":"ID-EPH-Cat2-Nonresidential","index":4,"n_rows":108,"n_cols":79,"rows_kept":108,"cut":false,"hidden":false,"merged":[[18,7,18,8],[25,1,25,2],[26,1,26,2],[27,1,27,2],[28,1,28,2],[22,1,22,2],[23,1,23,2],[24,1,24,2],[18,1,18,2],[19,1,19,2],[20,1,20,2],[21,1,21,2],[14,1,14,2],[15,1,15,2],[15,10,15,11],[16,1,16,2],[17,1,17,2],[0,0,0,8],[1,0,1,1],[1,2,1,6],[2,0,3,1],[2,2,3,5],[2,7,2,8],[3,7,3,8]]}
["NJDEP 2021 EPH Category 2 Ingestion/Dermal Nonresidential Calculator"]
["Site Name:",null,null,null,null,null,null,"Date:",null,null,null,"Calculated or locked cell"]
["Sample ID:",null,null,null,null,null,null,null,null,null,null,"Required data entry"]
[null,null,null,null,null,null,"Evaluated by:",null,null,null,null,"Optional data entry/modification"]
[]
[]
[null,"AL 9-12\n(PHC Mixture)","AL 12-16\n(PHC Mixture)","AL 16-21\n(Mineral Oil)","AL 21-40\n(Mineral Oil)","AR 10-12\n(Naphthalene)","AR12-16\n(Acenaphthalene)","AR 16-21\n(Fluorene)","AR 21-36\n(Fluoranthene)"]
["RfDo",0.1,0.1,2,2,4.1000000000000002E-2,0.06,0.04,0.04]
["RfDD",0.1,0.1,2,2,4.1000000000000002E-2,0.06,0.04,0.04]
["ABSd",0.1,0.1,0.1,0.1,0.13,0.13,0.13,0.13]
["Adult ECFV",{"$f":"($E$16*$E$17*$E$19*$E$23)/($E$18*$E$19*10^-6*(((1/B8)*$E$24)+((1/B9)*$E$25*$E$26*B10)))","v":91184.745916203712},91184.745916203712,1823694.9183240742,1823694.9183240742,34323.620826628154,50229.689014577794,33486.459343051865,33486.459343051865]
["Concentration of fraction (mg/kg)","Enter concentration","Enter concentration","Enter concentration","Enter concentration","Enter concentration","Enter concentration","Enter concentration","Enter concentration"]
["f",{"$f":"IF(ISERROR(B12/$H$16),\"\",B12/$H$16)","v":""},{"$f":"IF(ISERROR(C12/$H$16),\"\",C12/$H$16)","v":""},"","","","","",""]
[]
["Parameter","Definition",null,"Units","Nonresidential Scenario",null,null,"Total EPH:"]
["THQ","Target Hazard Quotient",null,"unitless",1,null,null,{"$f":"IF(ISERROR(B12+C12+D12+E12+F12+G12+H12+I12),\"\",B12+C12+D12+E12+F12+G12+H12+I12)","v":""},"mg/kg"]
["AT","Averaging Time",null,"days/year",365,null,null,"Allowable EPH in sample:"]
["EFa","Exposure Frequency - adult",null,"days/year",225,null,null,{"$f":"C32","v":""},"mg/kg"]
["EDa","Exposure Duration - adult",null,"years",25,null,null,{"$f":"IF(H16=\"\",\"\",IF(H16<=H18, \"PASS\",\"FAIL\"))","v":""}]
["RfDo","Oral Reference Dose",null,"mg/kg-day","see above"]
["RfDD","Dermal Reference Dose",null,"mg/kg-day","see above"]
["ABSd","Dermal Absorption Fraction",null,"unitless","see above"]
["BWa","Body Weight - adult",null,"kg",80]
["IRa","Soil Ingestion Rate - adult",null,"mg/day",100]
["SAa","Skin Surface Area - adult",null,"cm2/day",3527]
["AFa","Soil Adherence Factor - adult",null,"mg/cm2",0.12]
["ECFV","Equivalent carbon fraction value",null,"mg/kg-day","see above"]
["f","EC Weight fraction =  fraction concentration/total concentration",null,"unitless","see above"]
["IDnc","Nonresidential Non-carcinogenic Health-Based Soil Criterion (ingestion/dermal)",null,"mg/kg",{"$f":"IF(ISERROR(1/(B13/B11+C13/C11+D13/D11+E13/E11+F13/F11+G13/G11+H13/H11+I13/I11)),\"\",Round_to_Even(1/(B13/B11+C13/C11+D13/D11+E13/E11+F13/F11+G13/G11+H13/H11+I13/I11)))","v":""}]
[]
["EPH Category 2 Ingestion/Dermal Nonresidential Soil Remediation Standard:"]
[null,null,{"$f":"E29","v":""},"mg/kg"]
[]
[]
[]
[]
[]
[]
[]
[]
[]
[]
[]
[]
[]
[]
[]
[]
[]
[]
[]
[]
[]
[]
[]
[]
[]
[]
[]
[]
[]
[]
[]
[]
[]
[]
[]
[]
[]
[]
[]
[]
[]
[]
[]
[]
[]
[]
[]
[]
[]
[]
[]
[]
[]
[]
[]
[]
[]
[]
[]
[]
[]
[]
[]
[]
[]
[]
[]
[]
[]
[]
[]
[]
[]
[]
[]
[null,null,null,null,null,null,null,null,null,null,null,null,null,null,null,null,null,null,null,null,null,null,null,null,null,null,null,null,null,null,null,null,null,null,null,null,null,null,null,null,null,null,null,null,null,null,null,null,null,null,null,null,null,null,null,null,null,null,null,null,null,null,null,null,null,null,null,null,null,null,null,null,null,null,null,null,null,null,"72-54-8"]

{"sheet":"ID-EPH-Cat2-Child Recreational","index":5,"n_rows":108,"n_cols":79,"rows_kept":108,"cut":false,"hidden":false,"merged":[[15,10,15,11],[15,1,15,2],[16,1,16,2],[23,1,23,2],[17,1,17,2],[18,1,18,2],[18,7,18,8],[0,0,0,8],[1,0,1,1],[1,2,1,6],[2,0,3,1],[2,2,3,5],[2,7,2,8],[14,1,14,2],[3,7,3,8],[25,1,25,2],[28,1,28,2],[19,1,19,2],[20,1,20,2],[26,1,26,2],[27,1,27,2],[22,1,22,2],[24,1,24,2],[21,1,21,2]]}
["NJDEP 2021 EPH Category 2 Ingestion/Dermal Child Recreational Calculator"]
["Site Name:",null,null,null,null,null,null,"Date:",null,null,null,"Calculated or locked cell"]
["Sample ID:",null,null,null,null,null,null,null,null,null,null,"Required data entry"]
[null,null,null,null,null,null,"Evaluated by:",null,null,null,null,"Optional data entry/modification"]
[]
[]
[null,"AL 9-12\n(PHC Mixture)","AL 12-16\n(PHC Mixture)","AL 16-21\n(Mineral Oil)","AL 21-40\n(Mineral Oil)","AR 10-12\n(Naphthalene)","AR 12-16\n(Acenaphthalene)","AR 16-21\n(Fluorene)","AR 21-36\n(Fluoranthene)"]
["RfDo",0.1,0.1,2,2,4.1000000000000002E-2,0.06,0.04,0.04]
["RfDD",0.1,0.1,2,2,4.1000000000000002E-2,0.06,0.04,0.04]
["ABSd",0.1,0.1,0.1,0.1,0.13,0.13,0.13,0.13]
["Child ECFV",{"$f":"($E$16*$E$17*$E$19*$E$23)/($E$18*$E$19*10^-6*(((1/B8)*$E$24)+((1/B9)*$E$25*$E$26*B10)))","v":6321.3679555714634},6321.3679555714634,126427.35911142928,126427.35911142928,2450.7529398663455,3586.4677168775793,2390.978477918386,2390.978477918386]
["Concentration of fraction (mg/kg)","Enter concentration","Enter concentration","Enter concentration","Enter concentration","Enter concentration","Enter concentration","Enter concentration","Enter concentration"]
["f",{"$f":"IF(ISERROR(B12/$H$16),\"\",B12/$H$16)","v":""},{"$f":"IF(ISERROR(C12/$H$16),\"\",C12/$H$16)","v":""},"","","","","",""]
[]
["Parameter","Definition",null,"Units","Child/Adult Scenario",null,null,"Total EPH:"]
["THQ","Target Hazard Quotient",null,"unitless",1,null,null,{"$f":"IF(ISERROR(B12+C12+D12+E12+F12+G12+H12+I12),\"\",B12+C12+D12+E12+F12+G12+H12+I12)","v":""},"mg/kg"]
["AT","Averaging Time",null,"days/year",365,null,null,"Allowable EPH in sample:"]
["EFc","Exposure Frequency - child",null,"days/year",350,{"$f":"IF(OR(E18<0,E18>365),\"out of range\",IF(E18<>350,\"changed from default of 350\",\"\"))","v":""},null,{"$f":"C32","v":""},"mg/kg"]
["EDc","Exposure Duration - child",null,"years",6,{"$f":"IF(OR(E19<0,E19>70),\"out of range\",IF(E19<>6,\"changed from default of 6\",\"\"))","v":""},null,{"$f":"IF(H16=\"\",\"\",IF(H16<=H18, \"PASS\",\"FAIL\"))","v":""}]
["RfDo","Oral Reference Dose",null,"mg/kg-day","see above"]
["RfDD","Dermal Reference Dose",null,"mg/kg-day","see above"]
["ABSd","Dermal Absorption Fraction",null,"unitless","see above"]
["BWc","Body Weight - child",null,"kg",15]
["IRc","Soil Ingestion Rate - child",null,"mg/day",200]
["SAc","Skin Surface Area - child",null,"cm2/day",2373]
["AFc","Soil Adherence Factor - child",null,"mg/cm2",0.2]
["ECFV","Equivalent carbon fraction value",null,"mg/kg-day","see above"]
["f","EC Weight fraction =  fraction concentration/total concentration",null,"unitless","see above"]
["IDnc","CHILD Non-carcinogenic Health-Based Soil Criterion (ingestion/dermal)",null,"mg/kg",{"$f":"IF(ISERROR(1/(B13/B11+C13/C11+D13/D11+E13/E11+F13/F11+G13/G11+H13/H11+I13/I11)),\"\",Round_to_Even(1/(B13/B11+C13/C11+D13/D11+E13/E11+F13/F11+G13/G11+H13/H11+I13/I11)))","v":""}]
[]
["EPH Category 2 Ingestion/Dermal Child Recreational Soil Remediation Standard:"]
[null,null,{"$f":"E29","v":""},"mg/kg"]
[]
[]
[]
[]
[]
[]
[]
[]
[]
[]
[]
[]
[]
[]
[]
[]
[]
[]
[]
[]
[]
[]
[]
[]
[]
[]
[]
[]
[]
[]
[]
[]
[]
[]
[]
[]
[]
[]
[]
[]
[]
[]
[]
[]
[]
[]
[]
[]
[]
[]
[]
[]
[]
[]
[]
[]
[]
[]
[]
[]
[]
[]
[]
[]
[]
[]
[]
[]
[]
[]
[]
[]
[]
[]
[]
[null,null,null,null,null,null,null,null,null,null,null,null,null,null,null,null,null,null,null,null,null,null,null,null,null,null,null,null,null,null,null,null,null,null,null,null,null,null,null,null,null,null,null,null,null,null,null,null,null,null,null,null,null,null,null,null,null,null,null,null,null,null,null,null,null,null,null,null,null,null,null,null,null,null,null,null,null,null,"72-54-8"]

{"sheet":"ID-EPH-Cat2-Adult Recreational","index":6,"n_rows":108,"n_cols":79,"rows_kept":108,"cut":false,"hidden":false,"merged":[[18,7,18,8],[25,1,25,2],[26,1,26,2],[27,1,27,2],[28,1,28,2],[22,1,22,2],[23,1,23,2],[24,1,24,2],[18,1,18,2],[19,1,19,2],[20,1,20,2],[21,1,21,2],[14,1,14,2],[15,1,15,2],[15,10,15,11],[16,1,16,2],[17,1,17,2],[0,0,0,8],[1,0,1,1],[1,2,1,6],[2,0,3,1],[2,2,3,5],[2,7,2,8],[3,7,3,8]]}
["NJDEP 2021 EPH Category 2 Ingestion/Dermal Adult Recreational Calculator"]
["Site Name:",null,null,null,null,null,null,"Date:",null,null,null,"Calculated or locked cell"]
["Sample ID:",null,null,null,null,null,null,null,null,null,null,"Required data entry"]
[null,null,null,null,null,null,"Evaluated by:",null,null,null,null,"Optional data entry/modification"]
[]
[]
[null,"AL 9-12\n(PHC Mixture)","AL 12-16\n(PHC Mixture)","AL 16-21\n(Mineral Oil)","AL 21-40\n(Mineral Oil)","AR 10-12\n(Naphthalene)","AR 12-16\n(Acenaphthalene)","AR 16-21\n(Fluorene)","AR 21-36\n(Fluoranthene)"]
["RfDo",0.1,0.1,2,2,4.1000000000000002E-2,0.06,0.04,0.04]
["RfDD",0.1,0.1,2,2,4.1000000000000002E-2,0.06,0.04,0.04]
["ABSd",0.1,0.1,0.1,0.1,0.13,0.13,0.13,0.13]
["Adult ECFV",{"$f":"($E$16*$E$17*$E$19*$E$23)/($E$18*$E$19*10^-6*(((1/B8)*$E$24)+((1/B9)*$E$25*$E$26*B10)))","v":58659.981035951343},58659.981035951343,1173199.6207190268,1173199.6207190268,22083.70410050041,32317.615756829862,21545.077171219909,21545.077171219909]
["Concentration of fraction (mg/kg)","Enter concentration","Enter concentration","Enter concentration","Enter concentration","Enter concentration","Enter concentration","Enter concentration","Enter concentration"]
["f",{"$f":"IF(ISERROR(B12/$H$16),\"\",B12/$H$16)","v":""},{"$f":"IF(ISERROR(C12/$H$16),\"\",C12/$H$16)","v":""},"","","","","",""]
[]
["Parameter","Definition",null,"Units","Adult Recreational Scenario",null,null,"Total EPH:"]
["THQ","Target Hazard Quotient",null,"unitless",1,null,null,{"$f":"IF(ISERROR(B12+C12+D12+E12+F12+G12+H12+I12),\"\",B12+C12+D12+E12+F12+G12+H12+I12)","v":""},"mg/kg"]
["AT","Averaging Time",null,"days/year",365,null,null,"Allowable EPH in sample:"]
["EFa","Exposure Frequency - adult",null,"days/year",350,{"$f":"IF(OR(E18<0,E18>365),\"out of range\",IF(E18<>350,\"changed from default of 350\",\"\"))","v":""},null,{"$f":"C32","v":""},"mg/kg"]
["EDa","Exposure Duration - adult",null,"years",20,{"$f":"IF(OR(E19<0,E19>70),\"out of range\",IF(E19<>20,\"changed from default of 20\",\"\"))","v":""},null,{"$f":"IF(H16=\"\",\"\",IF(H16<=H18, \"PASS\",\"FAIL\"))","v":""}]
["RfDo","Oral Reference Dose",null,"mg/kg-day","see above"]
["RfDD","Dermal Reference Dose",null,"mg/kg-day","see above"]
["ABSd","Dermal Absorption Fraction",null,"unitless","see above"]
["BWa","Body Weight - adult",null,"kg",80]
["IRa","Soil Ingestion Rate - adult",null,"mg/day",100]
["SAa","Skin Surface Area - adult",null,"cm2/day",6032]
["AFa","Soil Adherence Factor - adult",null,"mg/cm2",7.0000000000000007E-2]
["ECFV","Equivalent carbon fraction value",null,"mg/kg-day","see above"]
["f","EC Weight fraction =  fraction concentration/total concentration",null,"unitless","see above"]
["IDnc","ADULT Non-carcinogenic Health-Based Soil Criterion (ingestion/dermal)",null,"mg/kg",{"$f":"IF(ISERROR(1/(B13/B11+C13/C11+D13/D11+E13/E11+F13/F11+G13/G11+H13/H11+I13/I11)),\"\",Round_to_Even(1/(B13/B11+C13/C11+D13/D11+E13/E11+F13/F11+G13/G11+H13/H11+I13/I11)))","v":""}]
[]
["EPH Category 2 Ingestion/Dermal Adult Recreational Soil Remediation Standard:"]
[null,null,{"$f":"E29","v":""},"mg/kg"]
[]
[]
[]
[]
[]
[]
[]
[]
[]
[]
[]
[]
[]
[]
[]
[]
[]
[]
[]
[]
[]
[]
[]
[]
[]
[]
[]
[]
[]
[]
[]
[]
[]
[]
[]
[]
[]
[]
[]
[]
[]
[]
[]
[]
[]
[]
[]
[]
[]
[]
[]
[]
[]
[]
[]
[]
[]
[]
[]
[]
[]
[]
[]
[]
[]
[]
[]
[]
[]
[]
[]
[]
[]
[]
[]
[null,null,null,null,null,null,null,null,null,null,null,null,null,null,null,null,null,null,null,null,null,null,null,null,null,null,null,null,null,null,null,null,null,null,null,null,null,null,null,null,null,null,null,null,null,null,null,null,null,null,null,null,null,null,null,null,null,null,null,null,null,null,null,null,null,null,null,null,null,null,null,null,null,null,null,null,null,null,"72-54-8"]

{"sheet":"ID-EPH-Cat2-Adult Worker","index":7,"n_rows":108,"n_cols":79,"rows_kept":108,"cut":false,"hidden":false,"merged":[[15,10,15,11],[16,1,16,2],[17,1,17,2],[28,1,28,2],[22,1,22,2],[23,1,23,2],[24,1,24,2],[19,1,19,2],[20,1,20,2],[21,1,21,2],[25,1,25,2],[26,1,26,2],[27,1,27,2],[18,1,18,2],[18,7,18,8],[14,1,14,2],[15,1,15,2],[0,0,0,8],[1,0,1,1],[1,2,1,6],[2,0,3,1],[2,2,3,5],[2,7,2,8],[3,7,3,8]]}
["NJDEP 2021 EPH Category 2 Ingestion/Dermal Adult Worker Calculator"]
["Site Name:",null,null,null,null,null,null,"Date:",null,null,null,"Calculated or locked cell"]
["Sample ID:",null,null,null,null,null,null,null,null,null,null,"Required data entry"]
[null,null,null,null,null,null,"Evaluated by:",null,null,null,null,"Optional data entry/modification"]
[]
[]
[null,"AL 9-12\n(PHC Mixture)","AL 12-16\n(PHC Mixture)","AL 16-21\n(Mineral Oil)","AL 21-40\n(Mineral Oil)","AR 10-12\n(Naphthalene)","AR 12-16\n(Acenaphthalene)","AR 16-21\n(Fluorene)","AR 21-36\n(Fluoranthene)"]
["RfDo",0.1,0.1,2,2,4.1000000000000002E-2,0.06,0.04,0.04]
["RfDD",0.1,0.1,2,2,4.1000000000000002E-2,0.06,0.04,0.04]
["ABSd",0.1,0.1,0.1,0.1,0.13,0.13,0.13,0.13]
["Adult ECFV",{"$f":"($E$16*$E$17*$E$19*$E$23)/($E$18*$E$19*10^-6*(((1/B8)*$E$24)+((1/B9)*$E$25*$E$26*B10)))","v":91184.745916203712},91184.745916203712,1823694.9183240742,1823694.9183240742,34323.620826628154,50229.689014577794,33486.459343051865,33486.459343051865]
["Concentration of fraction (mg/kg)","Enter concentration","Enter concentration","Enter concentration","Enter concentration","Enter concentration","Enter concentration","Enter concentration","Enter concentration"]
["f",{"$f":"IF(ISERROR(B12/$H$16),\"\",B12/$H$16)","v":""},{"$f":"IF(ISERROR(C12/$H$16),\"\",C12/$H$16)","v":""},"","","","","",""]
[]
["Parameter","Definition",null,"Units","Adult Worker Scenario",null,null,"Total EPH:"]
["THQ","Target Hazard Quotient",null,"unitless",1,null,null,{"$f":"IF(ISERROR(B12+C12+D12+E12+F12+G12+H12+I12),\"\",B12+C12+D12+E12+F12+G12+H12+I12)","v":""},"mg/kg"]
["AT","Averaging Time",null,"days/year",365,null,null,"Allowable EPH in sample:"]
["EFa","Exposure Frequency - adult",null,"days/year",225,{"$f":"IF(OR(E18<0,E18>365),\"out of range\",IF(E18<>225,\"changed from default of 225\",\"\"))","v":""},null,{"$f":"C32","v":""},"mg/kg"]
["EDa","Exposure Duration - adult",null,"years",25,{"$f":"IF(OR(E19<0,E19>70),\"out of range\",IF(E19<>25,\"changed from default of 25\",\"\"))","v":""},null,{"$f":"IF(H16=\"\",\"\",IF(H16<=H18, \"PASS\",\"FAIL\"))","v":""}]
["RfDo","Oral Reference Dose",null,"mg/kg-day","see above"]
["RfDD","Dermal Reference Dose",null,"mg/kg-day","see above"]
["ABSd","Dermal Absorption Fraction",null,"unitless","see above"]
["BWa","Body Weight - adult",null,"kg",80]
["IRa","Soil Ingestion Rate - adult",null,"mg/day",100]
["SAa","Skin Surface Area - adult",null,"cm2/day",3527]
["AFa","Soil Adherence Factor - adult",null,"mg/cm2",0.12]
["ECFV","Equivalent carbon fraction value",null,"mg/kg-day","see above"]
["f","EC Weight fraction =  fraction concentration/total concentration",null,"unitless","see above"]
["IDnc","ADULT Non-carcinogenic Health-Based Soil Criterion (ingestion/dermal)",null,"mg/kg",{"$f":"IF(ISERROR(1/(B13/B11+C13/C11+D13/D11+E13/E11+F13/F11+G13/G11+H13/H11+I13/I11)),\"\",Round_to_Even(1/(B13/B11+C13/C11+D13/D11+E13/E11+F13/F11+G13/G11+H13/H11+I13/I11)))","v":""}]
[]
["EPH Category 2 Ingestion/Dermal Adult Worker Soil Remediation Standard:"]
[null,null,{"$f":"E29","v":""},"mg/kg"]
[]
[]
[]
[]
[]
[]
[]
[]
[]
[]
[]
[]
[]
[]
[]
[]
[]
[]
[]
[]
[]
[]
[]
[]
[]
[]
[]
[]
[]
[]
[]
[]
[]
[]
[]
[]
[]
[]
[]
[]
[]
[]
[]
[]
[]
[]
[]
[]
[]
[]
[]
[]
[]
[]
[]
[]
[]
[]
[]
[]
[]
[]
[]
[]
[]
[]
[]
[]
[]
[]
[]
[]
[]
[]
[]
[null,null,null,null,null,null,null,null,null,null,null,null,null,null,null,null,null,null,null,null,null,null,null,null,null,null,null,null,null,null,null,null,null,null,null,null,null,null,null,null,null,null,null,null,null,null,null,null,null,null,null,null,null,null,null,null,null,null,null,null,null,null,null,null,null,null,null,null,null,null,null,null,null,null,null,null,null,null,"72-54-8"]

{"sheet":"Sheet1","index":8,"n_rows":0,"n_cols":0,"rows_kept":0,"cut":false,"hidden":false,"merged":[]}